fUSD/lending_fUSD_20240225
["ID","MTS","AMOUNT","RATE_DAILY","PERIOD"]
[315160237,1708896637919,-643.63543872,0.00022747,2]
[315160238,1708896637931,-164.09408402,0.00022759,2]
[315160239,1708896637941,-177.83,0.0002276,2]
[315160240,1708896637951,-580.38,0.00022787,2]
[315160241,1708896637963,-150.34698581,0.00022821,2]
[315160242,1708896637974,-410.94301419,0.00022821,2]
[315160243,1708896637984,-226.90114879,0.00022822,2]
[315160244,1708896637993,-531.13344801,0.00022822,2]
[315160245,1708896638002,-500.0,0.00022822,2]
[315160246,1708896638011,-18.78790341,0.00022822,2]
[315160247,1708896638051,-598.74209659,0.00022822,2]
[315160248,1708896638061,-500.0,0.00022822,2]
[315160249,1708896638071,-500.0,0.00022822,2]
[315160250,1708896638080,-3312.15284179,0.00022823,2]
[315160251,1708896638101,-25000.78989317,0.00022823,2]
[315160473,1708896640569,-1340.8,0.00022823,2]
[315160565,1708896641451,-3245.76621827,0.00022823,2]
[315160720,1708896642985,-500.0,0.00022822,2]
[315160722,1708896642996,-403283.49104677,0.00022823,2]
[315160724,1708896643006,-580.38,0.00022847,2]
[315160726,1708896643015,-3520.06343051,0.000229,2]
[315160728,1708896643024,-500.0,0.000229,2]
[315160730,1708896643034,-259.53,0.000229,2]
[315160732,1708896643043,-580.38,0.00022907,2]
[315160734,1708896643052,-561.29,0.00022936,2]
[315160736,1708896643062,-1074.5973,0.00022954,2]
[315160739,1708896643080,-207.6925,0.00022954,2]
[315160741,1708896643091,-580.38,0.00022967,2]
[315160743,1708896643100,-481.25187335,0.0002298,2]
[315160745,1708896643109,-1432.20018795,0.0002298,2]
[315160747,1708896643119,-150.0,0.0002299,2]
[315160749,1708896643128,-150.0,0.0002299,2]
[315160751,1708896643137,-150.0,0.0002299,2]
[315160753,1708896643146,-150.0,0.0002299,2]
[315160755,1708896643155,-707.3,0.00023,4]
[315160757,1708896643164,-250.0,0.00023,2]
[315160759,1708896643174,-321.41148664,0.00023,2]
[315160761,1708896643184,-155.68,0.00023014,2]
[315160763,1708896643193,-259.53,0.00023037,2]
[315160765,1708896643203,-571.84,0.00023052,2]
[315160767,1708896643212,-500.0,0.00023052,2]
[315160769,1708896643221,-500.0,0.00023052,2]
[315160771,1708896643231,-561.29,0.00023052,2]
[315160773,1708896643242,-500.0,0.00023053,2]
[315160775,1708896643255,-500.0,0.00023053,2]
[315160777,1708896643265,-500.0,0.00023053,2]
[315160779,1708896643275,-500.0,0.00023053,2]
[315160781,1708896643284,-277.545,0.00023053,2]
[315160783,1708896643295,-500.0,0.00023053,2]
[315160785,1708896643305,-500.0,0.00023053,2]
[315160787,1708896643314,-500.0,0.00023053,2]
[315160789,1708896643324,-500.0,0.00023053,2]
[315160791,1708896643334,-500.0,0.00023053,2]
[315160793,1708896643343,-500.0,0.00023053,2]
[315160795,1708896643353,-500.0,0.00023053,2]
[315160797,1708896643362,-500.0,0.00023053,2]
[315160799,1708896643373,-542.07,0.00023053,2]
[315160801,1708896643383,-500.0,0.00023053,2]
[315160803,1708896643392,-500.0,0.00023053,2]
[315160805,1708896643402,-224.42416516,0.00023053,2]
[315160807,1708896643412,-500.0,0.00023053,2]
[315160809,1708896643422,-238.65,0.00023053,2]
[315160812,1708896643433,-500.0,0.00023053,2]
[315160814,1708896643443,-292.77644325,0.00023053,2]
[315160816,1708896643452,-500.0,0.00023053,2]
[315160818,1708896643462,-500.0,0.00023053,2]
[315160820,1708896643471,-336.2,0.00023053,2]
[315160821,1708896643480,-588.98,0.00023053,2]
[315160823,1708896643489,-588.98,0.00023053,2]
[315160825,1708896643499,-268.43222115,0.00023053,2]
[315160827,1708896643508,-500.0,0.00023053,2]
[315160830,1708896643518,-500.0,0.00023053,2]
[315160832,1708896643532,-500.0,0.00023053,2]
[315160834,1708896643542,-500.0,0.00023053,2]
[315160836,1708896643551,-500.0,0.00023053,2]
[315160838,1708896643560,-642.97236941,0.00023053,2]
[315160840,1708896643570,-500.0,0.00023053,2]
[315160842,1708896643579,-471.15787741,0.00023053,2]
[315160844,1708896643589,-500.0,0.00023053,2]
[315160846,1708896643598,-500.0,0.00023053,2]
[315160848,1708896643607,-190.17,0.00023065,10]
[315160850,1708896643617,-802.59,0.0002308,2]
[315160852,1708896643627,-1432.2001879,0.00023111,2]
[315160854,1708896643637,-561.29,0.00023168,2]
[315160856,1708896643646,-259.53,0.00023174,2]
[315160858,1708896643656,-863.78,0.00023178,2]
[315160860,1708896643665,-150.71,0.00023178,2]
[315160862,1708896643675,-150.0,0.00023178,2]
[315160864,1708896643686,-1000.0,0.00023187,2]
[315160866,1708896643696,-481.25187332,0.00023206,2]
[315160868,1708896643706,-1432.2001879,0.00023243,2]
[315160870,1708896643715,-250.0,0.00023274,2]
[315160872,1708896643725,-561.29,0.00023284,2]
[315160874,1708896643734,-483.87996432,0.00023286,2]
[315160876,1708896643744,-608.24360722,0.00023286,2]
[315160878,1708896643753,-500.0,0.00023286,2]
[315160880,1708896643763,-500.0,0.00023286,2]
[315160883,1708896643772,-500.0,0.00023286,2]
[315160885,1708896643782,-500.0,0.00023286,2]
[315160887,1708896643791,-966.31,0.00023286,2]
[315160889,1708896643804,-966.31,0.00023286,2]
[315160891,1708896643813,-500.0,0.00023286,2]
[315160893,1708896643823,-500.0,0.00023286,2]
[315160895,1708896643832,-500.0,0.00023286,2]
[315160897,1708896643842,-500.0,0.00023286,2]
[315160899,1708896643851,-500.0,0.00023286,2]
[315160901,1708896643860,-383.30161732,0.00023286,2]
[315160903,1708896643870,-500.0,0.00023286,2]
[315160905,1708896643881,-500.0,0.00023286,2]
[315160907,1708896643890,-500.0,0.00023286,2]
[315160909,1708896643900,-536.26,0.00023286,2]
[315160911,1708896643909,-500.0,0.00023286,2]
[315160913,1708896643919,-500.0,0.00023286,2]
[315160915,1708896643928,-624.12,0.00023286,2]
[315160917,1708896643940,-500.0,0.00023286,2]
[315160919,1708896643949,-500.0,0.00023286,2]
[315160921,1708896643959,-500.0,0.00023286,2]
[315160923,1708896643968,-500.0,0.00023286,2]
[315160926,1708896643978,-500.0,0.00023286,2]
[315160928,1708896643989,-500.0,0.00023286,2]
[315160930,1708896643998,-500.0,0.00023286,2]
[315160931,1708896644007,-500.0,0.00023286,2]
[315160932,1708896644016,-500.0,0.00023286,2]
[315160933,1708896644025,-500.0,0.00023286,2]
[315160934,1708896644035,-500.0,0.00023286,2]
[315160935,1708896644044,-500.0,0.00023286,2]
[315160936,1708896644053,-500.0,0.00023286,2]
[315160937,1708896644062,-500.0,0.00023286,2]
[315160938,1708896644074,-500.0,0.00023286,2]
[315160939,1708896644083,-500.0,0.00023286,2]
[315160940,1708896644092,-500.0,0.00023286,2]
[315160942,1708896644102,-500.0,0.00023286,2]
[315160944,1708896644111,-500.0,0.00023286,2]
[315160946,1708896644120,-500.0,0.00023286,2]
[315160948,1708896644130,-500.0,0.00023286,2]
[315160950,1708896644139,-500.0,0.00023286,2]
[315160952,1708896644149,-500.0,0.00023286,2]
[315160954,1708896644158,-500.0,0.00023286,2]
[315160956,1708896644168,-500.0,0.00023286,2]
[315160958,1708896644177,-500.0,0.00023286,2]
[315160960,1708896644188,-500.0,0.00023286,2]
[315160962,1708896644197,-500.0,0.00023286,2]
[315160964,1708896644207,-500.0,0.00023286,2]
[315160966,1708896644216,-500.0,0.00023286,2]
[315160968,1708896644226,-500.0,0.00023286,2]
[315160970,1708896644236,-500.0,0.00023286,2]
[315160972,1708896644249,-263.09,0.00023286,2]
[315160974,1708896644259,-508.07,0.00023286,2]
[315160976,1708896644268,-500.0,0.00023286,2]
[315160978,1708896644278,-500.0,0.00023286,2]
[315160980,1708896644289,-500.0,0.00023286,2]
[315160982,1708896644298,-500.0,0.00023286,2]
[315160984,1708896644308,-500.0,0.00023286,2]
[315160986,1708896644317,-500.0,0.00023286,2]
[315160988,1708896644327,-500.0,0.00023286,2]
[315160990,1708896644336,-500.0,0.00023286,2]
[315160992,1708896644346,-500.0,0.00023286,2]
[315160994,1708896644355,-500.0,0.00023286,2]
[315160996,1708896644364,-500.0,0.00023286,2]
[315160998,1708896644374,-500.0,0.00023286,2]
[315161000,1708896644384,-500.0,0.00023286,2]
[315161002,1708896644394,-1011.86346975,0.00023286,7]
[315161004,1708896644403,-500.0,0.00023286,2]
[315161006,1708896644413,-264.44161388,0.00023286,2]
[315161008,1708896644422,-500.0,0.00023286,2]
[315161010,1708896644432,-500.0,0.00023286,2]
[315161012,1708896644442,-500.0,0.00023286,2]
[315161014,1708896644451,-642.54,0.00023286,2]
[315161016,1708896644461,-642.54,0.00023286,2]
[315161018,1708896644470,-500.0,0.00023286,2]
[315161020,1708896644480,-500.0,0.00023286,2]
[315161022,1708896644489,-500.0,0.00023286,2]
[315161024,1708896644498,-500.0,0.00023286,2]
[315161026,1708896644507,-500.0,0.00023286,2]
[315161028,1708896644517,-500.0,0.00023286,2]
[315161030,1708896644526,-500.0,0.00023286,2]
[315161032,1708896644535,-500.0,0.00023286,2]
[315161034,1708896644546,-500.0,0.00023286,2]
[315161036,1708896644555,-500.0,0.00023286,2]
[315161038,1708896644564,-500.0,0.00023286,2]
[315161040,1708896644574,-500.0,0.00023286,2]
[315161042,1708896644583,-500.0,0.00023286,2]
[315161044,1708896644593,-500.0,0.00023286,2]
[315161046,1708896644602,-500.0,0.00023286,2]
[315161048,1708896644612,-500.0,0.00023286,2]
[315161050,1708896644621,-500.0,0.00023286,2]
[315161052,1708896644631,-500.0,0.00023286,2]
[315161054,1708896644641,-500.0,0.00023286,2]
[315161056,1708896644650,-500.0,0.00023286,2]
[315161058,1708896644659,-500.0,0.00023286,2]
[315161060,1708896644669,-500.0,0.00023286,2]
[315161062,1708896644679,-500.0,0.00023286,2]
[315161064,1708896644690,-500.0,0.00023286,2]
[315161067,1708896644700,-500.0,0.00023286,2]
[315161069,1708896644709,-177.83,0.00023308,2]
[315161070,1708896644720,-259.53,0.00023311,2]
[315161073,1708896644729,-163.26,0.00023354,2]
[315161075,1708896644739,-6772.46,0.00023368,2]
[315161077,1708896644748,-5749.34,0.00023368,2]
[315161079,1708896644758,-2828.57,0.00023368,2]
[315161081,1708896644767,-1785.74,0.00023373,2]
[315161083,1708896644777,-1432.2001879,0.00023374,2]
[315161085,1708896644786,-561.29,0.000234,2]
[315161087,1708896644795,-14342.0,0.000234,2]
[315161089,1708896644805,-3005.0,0.000234,2]
[315161091,1708896644814,-481.25187332,0.00023432,2]
[315161093,1708896644823,-500.0,0.00023448,2]
[315161095,1708896644833,-259.53,0.00023448,2]
[315161097,1708896644842,-1432.2001879,0.00023506,2]
[315161099,1708896644852,-561.29,0.00023516,2]
[315161101,1708896644862,-150.0,0.00023538,2]
[315161103,1708896644872,-150.0,0.00023538,2]
[315161105,1708896644881,-250.0,0.00023548,2]
[315161107,1708896644890,-204.46914749,0.0002356,2]
[315161110,1708896644909,-543.18750171,0.0002356,2]
[315161112,1708896644919,-1410.47129995,0.00023565,2]
[315161114,1708896644928,-5808.97,0.00023576,2]
[315161116,1708896644939,-190.17,0.00023591,10]
[315161118,1708896644949,-561.29,0.00023631,2]
[315161120,1708896644958,-1432.2001879,0.00023637,2]
[315161122,1708896644967,-481.25187332,0.00023657,2]
[315161124,1708896644977,-874.09,0.00023659,2]
[315161126,1708896644986,-500.0,0.00023659,2]
[315161128,1708896644995,-500.95880741,0.00023659,2]
[315161131,1708896645005,-500.0,0.00023659,2]
[315161133,1708896645014,-500.0,0.00023659,2]
[315161135,1708896645023,-500.0,0.00023659,2]
[315161137,1708896645032,-500.0,0.00023659,2]
[315161138,1708896645041,-500.0,0.00023659,2]
[315161141,1708896645051,-550.587974,0.00023659,2]
[315161143,1708896645060,-500.0,0.00023659,2]
[315161145,1708896645069,-500.0,0.00023659,2]
[315161147,1708896645078,-500.0,0.00023659,2]
[315161149,1708896645088,-500.0,0.00023659,2]
[315161151,1708896645097,-217.61877655,0.00023659,2]
[315161153,1708896645106,-500.0,0.00023659,2]
[315161155,1708896645116,-500.0,0.00023659,2]
[315161157,1708896645125,-182.05295812,0.00023659,2]
[315161159,1708896645134,-500.0,0.00023659,2]
[315161161,1708896645143,-966.31,0.00023659,2]
[315161163,1708896645153,-500.0,0.00023659,2]
[315161165,1708896645162,-170.47,0.00023659,2]
[315161167,1708896645171,-500.0,0.00023659,2]
[315161169,1708896645182,-229.90634839,0.00023659,2]
[315161171,1708896645191,-500.0,0.00023659,2]
[315161173,1708896645200,-500.0,0.00023659,2]
[315161175,1708896645209,-500.0,0.00023659,2]
[315161177,1708896645219,-500.0,0.00023659,2]
[315161179,1708896645228,-500.0,0.00023659,2]
[315161181,1708896645238,-500.0,0.00023659,2]
[315161183,1708896645252,-500.0,0.00023659,2]
[315161185,1708896645261,-500.0,0.00023659,2]
[315161187,1708896645270,-347.0988352,0.00023659,2]
[315161189,1708896645279,-170.49,0.00023659,2]
[315161191,1708896645289,-500.0,0.00023659,2]
[315161193,1708896645299,-500.0,0.00023659,2]
[315161195,1708896645308,-500.0,0.00023659,2]
[315161197,1708896645317,-500.0,0.00023659,2]
[315161199,1708896645326,-247.58872568,0.00023659,2]
[315161201,1708896645336,-500.0,0.00023659,2]
[315161203,1708896645345,-500.0,0.00023659,2]
[315161205,1708896645354,-500.0,0.00023659,2]
[315161207,1708896645363,-570.68693235,0.00023659,2]
[315161209,1708896645373,-500.0,0.00023659,2]
[315161211,1708896645382,-500.0,0.00023659,2]
[315161213,1708896645391,-500.0,0.00023659,2]
[315161215,1708896645400,-500.0,0.00023659,2]
[315161217,1708896645409,-500.0,0.00023659,2]
[315161219,1708896645419,-500.0,0.00023659,2]
[315161221,1708896645432,-500.0,0.00023659,2]
[315161223,1708896645441,-500.0,0.00023659,2]
[315161225,1708896645451,-500.0,0.00023659,2]
[315161227,1708896645460,-210.88,0.00023659,2]
[315161229,1708896645470,-500.0,0.00023659,2]
[315161231,1708896645479,-593.80549472,0.00023659,2]
[315161233,1708896645489,-525.46,0.00023659,2]
[315161235,1708896645499,-526.28,0.00023659,2]
[315161237,1708896645508,-500.0,0.00023659,2]
[315161239,1708896645518,-500.0,0.00023659,2]
[315161241,1708896645527,-500.0,0.00023659,2]
[315161243,1708896645537,-500.0,0.00023659,2]
[315161245,1708896645546,-544.60941785,0.00023659,2]
[315161247,1708896645555,-500.0,0.00023659,2]
[315161249,1708896645565,-204.46914749,0.00023659,2]
[315161251,1708896645574,-587.56244515,0.00023659,2]
[315161253,1708896645584,-500.0,0.00023659,2]
[315161255,1708896645593,-500.0,0.00023659,2]
[315161257,1708896645603,-642.54,0.00023659,2]
[315161259,1708896645612,-500.0,0.00023659,2]
[315161261,1708896645622,-500.0,0.00023659,2]
[315161263,1708896645632,-500.0,0.00023659,2]
[315161266,1708896645642,-500.0,0.00023659,2]
[315161268,1708896645651,-500.0,0.00023659,2]
[315161270,1708896645660,-500.0,0.00023659,2]
[315161272,1708896645669,-500.0,0.00023659,2]
[315161274,1708896645679,-500.0,0.00023659,2]
[315161276,1708896645689,-500.0,0.00023659,2]
[315161278,1708896645699,-266.13,0.00023659,2]
[315161280,1708896645709,-588.98,0.00023659,2]
[315161281,1708896645719,-500.0,0.00023659,2]
[315161284,1708896645729,-500.0,0.00023659,2]
[315161286,1708896645738,-500.0,0.00023659,2]
[315161287,1708896645747,-500.0,0.00023659,2]
[315161289,1708896645756,-581.06,0.00023659,2]
[315161292,1708896645766,-500.0,0.00023659,2]
[315161294,1708896645775,-500.0,0.00023659,2]
[315161296,1708896645784,-500.0,0.00023659,2]
[315161298,1708896645794,-500.0,0.00023659,2]
[315161300,1708896645803,-645.92,0.00023659,2]
[315161302,1708896645812,-500.0,0.00023659,2]
[315161304,1708896645822,-500.0,0.00023659,2]
[315161306,1708896645831,-5000.0,0.00023659,2]
[315161308,1708896645840,-245000.0,0.0002366,2]
[315161310,1708896645849,-500.0,0.0002366,2]
[315161312,1708896645858,-170.39792644,0.0002366,2]
[315161314,1708896645867,-164.09408402,0.00023668,2]
[315161316,1708896645876,-500.0,0.00023696,2]
[315161318,1708896645885,-439633.00496003,0.00023697,4]
[315161359,1708896646259,-134.36635229,0.00023659,2]
[315161363,1708896646287,-365.13314771,0.00023659,2]
[315161365,1708896646299,-684.29397665,0.00023697,4]
[315161439,1708896647065,-259.53,0.00023585,2]
[315161441,1708896647075,-500.0,0.00023659,2]
[315161443,1708896647085,-7328.57239288,0.00023697,4]
[315161446,1708896647102,-437.25141403,0.00023697,4]
[315161448,1708896647116,-1110.1255479,0.00023697,4]
[315161451,1708896647134,-946.52406768,0.00023697,4]
[315161454,1708896647151,-863.53951681,0.00023697,4]
[315161636,1708896712394,-200.0,0.00022774,2]
[315161637,1708896712417,-3872.65,0.00022786,2]
[315161638,1708896712451,-23900.0,0.00022786,2]
[315161639,1708896712477,-500.0,0.00022822,2]
[315161640,1708896712501,-4212.86,0.00022953,2]
[315161641,1708896725027,206.0,0.00022971,2]
[315161642,1708896734178,-1241.77234775,0.00023051,2]
[315161643,1708896734201,-500.0,0.00023052,2]
[315161644,1708896734222,-500.0,0.00023053,2]
[315161645,1708896734244,-500.0,0.00023053,2]
[315161646,1708896734266,-500.0,0.00023053,2]
[315161647,1708896734290,-500.0,0.00023053,2]
[315161648,1708896734313,-500.0,0.00023053,2]
[315161649,1708896734334,-500.0,0.00023053,2]
[315161650,1708896734356,-500.0,0.00023053,2]
[315161651,1708896734378,-500.0,0.00023053,2]
[315161652,1708896734398,-500.0,0.00023053,2]
[315161653,1708896734418,-500.0,0.00023053,2]
[315161654,1708896734439,-500.0,0.00023053,2]
[315161655,1708896734460,-500.0,0.00023053,2]
[315161656,1708896734482,-500.0,0.00023053,2]
[315161657,1708896734504,-603.41,0.00023053,2]
[315161658,1708896734524,-603.41,0.00023053,2]
[315161659,1708896734545,-500.0,0.00023053,2]
[315161660,1708896734567,-500.0,0.00023053,2]
[315161661,1708896734588,-617.7,0.00023053,2]
[315161662,1708896734612,-500.0,0.00023053,2]
[315161663,1708896734633,-500.0,0.00023053,2]
[315161664,1708896734653,-500.0,0.00023053,2]
[315161665,1708896734674,-500.0,0.00023053,2]
[315161666,1708896734696,-500.0,0.00023286,2]
[315161667,1708896734718,-500.0,0.00023286,2]
[315161668,1708896734738,-500.0,0.00023286,2]
[315161669,1708896734760,-500.0,0.00023286,2]
[315161670,1708896734782,-500.0,0.00023286,2]
[315161671,1708896734802,-500.0,0.00023286,2]
[315161672,1708896734823,-500.0,0.00023286,2]
[315161673,1708896734843,-500.0,0.00023286,2]
[315161674,1708896734864,-543.26,0.00023286,2]
[315161675,1708896734885,-500.0,0.00023286,2]
[315161676,1708896734905,-500.0,0.00023286,2]
[315161677,1708896734926,-500.0,0.00023286,2]
[315161678,1708896734948,-500.0,0.00023286,2]
[315161679,1708896734969,-500.0,0.00023286,2]
[315161680,1708896734989,-500.0,0.00023286,2]
[315161681,1708896735012,-500.0,0.00023286,2]
[315161682,1708896735033,-500.0,0.00023286,2]
[315161683,1708896735053,-500.0,0.00023286,2]
[315161684,1708896735074,-500.0,0.00023286,2]
[315161685,1708896735095,-500.0,0.00023286,2]
[315161686,1708896735116,-500.0,0.00023286,2]
[315161687,1708896735137,-500.0,0.00023286,2]
[315161688,1708896735160,-500.0,0.00023286,2]
[315161689,1708896735182,-500.0,0.00023286,2]
[315161690,1708896735203,-500.0,0.00023286,2]
[315161691,1708896735225,-500.0,0.00023286,2]
[315161692,1708896735249,-500.0,0.00023286,2]
[315161693,1708896735273,-500.0,0.00023286,2]
[315161694,1708896735296,-500.0,0.00023286,2]
[315161695,1708896735316,-500.0,0.00023286,2]
[315161696,1708896735337,-445.94879472,0.00023286,2]
[315161697,1708896735357,-500.0,0.00023286,2]
[315161698,1708896735380,-500.0,0.00023286,2]
[315161699,1708896735635,-500.0,0.00023286,2]
[315161700,1708896735658,-500.0,0.00023286,2]
[315161701,1708896735678,-640.43838132,0.00023286,2]
[315161702,1708896735699,-500.0,0.00023286,2]
[315161703,1708896735727,-594.1,0.00023286,2]
[315161704,1708896735749,-500.0,0.00023286,2]
[315161705,1708896735771,-500.0,0.00023286,2]
[315161706,1708896735791,-459.93155878,0.00023286,2]
[315161707,1708896735814,-500.0,0.00023286,2]
[315161708,1708896735834,-500.0,0.00023286,2]
[315161709,1708896735854,-500.0,0.00023286,2]
[315161710,1708896735874,-500.0,0.00023286,2]
[315161711,1708896735893,-500.0,0.00023286,2]
[315161712,1708896735914,-15758.0,0.000234,2]
[315161713,1708896736003,500.0,0.00022822,2]
[315161714,1708896736098,500.0,0.00023052,2]
[315161715,1708896736211,500.0,0.00023053,2]
[315161716,1708896736288,500.0,0.00023053,2]
[315161717,1708896736613,500.0,0.00023286,2]
[315161718,1708896736922,500.0,0.00023286,2]
[315161719,1708896738889,500.0,0.00023053,2]
[315161720,1708896739386,500.0,0.00023053,2]
[315161721,1708896741215,421.14032185,0.00023286,2]
[315161722,1708896741605,430.7049708,0.00023,2]
[315161723,1708896741896,500.0,0.00023053,2]
[315161724,1708896742153,451.08,0.00023053,2]
[315161725,1708896742357,782.31,0.00022822,2]
[315161726,1708896742606,782.31,0.00023052,2]
[315161727,1708896743626,500.0,0.00023286,2]
[315161728,1708896743684,500.0,0.00023286,2]
[315161729,1708896743919,500.0,0.00023286,2]
[315161730,1708896743945,500.0,0.00023286,2]
[315161731,1708896744634,385.74,0.00023053,2]
[315161732,1708896745241,862.66,0.00023053,2]
[315161733,1708896745510,862.66,0.00023053,2]
[315161734,1708896749439,500.0,0.00023053,2]
[315161735,1708896749715,500.0,0.00023053,2]
[315161736,1708896752621,500.0,0.00023286,2]
[315161737,1708896752867,500.0,0.00023286,2]
[315161738,1708896753160,500.0,0.00023053,2]
[315161739,1708896753352,500.0,0.00023053,2]
[315161740,1708896753445,500.0,0.00023053,2]
[315161741,1708896753557,500.0,0.00023053,2]
[315161742,1708896753845,1064.67,0.00023286,2]
[315161743,1708896754136,1064.67,0.00023286,2]
[315161744,1708896756631,500.0,0.00023286,2]
[315161745,1708896756956,500.0,0.00023286,2]
[315161746,1708896756987,405.7066,0.00021807,2]
[315161747,1708896757589,-38269.0959,0.00023597,2]
[315161748,1708896757614,-358.05004701,0.00023597,2]
[315161749,1708896757636,-358.05004697,0.0002364,2]
[315161750,1708896757658,-1841.26,0.00023659,2]
[315161751,1708896757682,-612.11,0.00023659,2]
[315161752,1708896757704,-500.0,0.00023659,2]
[315161753,1708896757725,-500.0,0.00023659,2]
[315161754,1708896757747,-500.0,0.00023659,2]
[315161755,1708896757770,-500.0,0.00023659,2]
[315161756,1708896757791,-500.0,0.00023659,2]
[315161757,1708896757816,-500.0,0.00023659,2]
[315161758,1708896757839,-160.41729112,0.00023659,2]
[315161759,1708896757861,-641.24,0.00023659,2]
[315161760,1708896757883,-500.0,0.00023659,2]
[315161761,1708896757903,-500.0,0.00023659,2]
[315161762,1708896757924,-500.0,0.00023659,2]
[315161763,1708896757945,-500.0,0.00023659,2]
[315161764,1708896757967,-500.0,0.00023659,2]
[315161765,1708896757989,-500.0,0.00023659,2]
[315161766,1708896758010,-500.0,0.00023659,2]
[315161767,1708896758034,-500.0,0.00023659,2]
[315161768,1708896758057,-500.0,0.00023659,2]
[315161769,1708896758078,-500.0,0.00023659,2]
[315161770,1708896758099,-500.0,0.00023659,2]
[315161771,1708896758120,-500.0,0.00023659,2]
[315161772,1708896758141,-500.0,0.00023659,2]
[315161773,1708896758162,-500.0,0.00023659,2]
[315161774,1708896758183,-500.0,0.00023659,2]
[315161775,1708896758205,-500.0,0.00023659,2]
[315161776,1708896758228,-500.0,0.00023659,2]
[315161777,1708896758249,-500.0,0.00023659,2]
[315161778,1708896758272,-603.41,0.00023659,2]
[315161779,1708896758295,-500.0,0.00023659,2]
[315161780,1708896758318,-500.0,0.00023659,2]
[315161781,1708896758343,-500.0,0.00023659,2]
[315161782,1708896758365,-500.0,0.00023659,2]
[315161783,1708896758387,-500.0,0.00023659,2]
[315161784,1708896758410,-500.0,0.00023659,2]
[315161785,1708896758431,-500.0,0.00023659,2]
[315161786,1708896758453,-500.0,0.00023659,2]
[315161787,1708896758474,-500.0,0.00023659,2]
[315161788,1708896758497,-555.77788737,0.00023659,2]
[315161789,1708896758518,-166.42,0.00023659,2]
[315161790,1708896758542,-195.8,0.00023659,2]
[315161791,1708896758563,-500.0,0.00023659,2]
[315161792,1708896758584,-340.98,0.00023659,2]
[315161793,1708896758605,-500.0,0.00023659,2]
[315161794,1708896758627,-782.31,0.00023659,2]
[315161795,1708896758937,-528.35275526,0.00023659,2]
[315161796,1708896758959,-500.0,0.00023659,2]
[315161797,1708896758980,-500.0,0.00023659,2]
[315161798,1708896759001,-862.66,0.00023659,2]
[315161799,1708896759022,-500.0,0.00023659,2]
[315161800,1708896759043,-500.0,0.00023659,2]
[315161801,1708896759065,-500.0,0.00023659,2]
[315161802,1708896759085,-1064.67,0.00023659,2]
[315161803,1708896759105,-500.0,0.00023659,2]
[315161804,1708896759126,-5000.0,0.0002366,2]
[315161805,1708896759148,-358.05004697,0.00023684,2]
[315161806,1708896759169,-500.0,0.00023696,2]
[315161807,1708896759191,-782.31,0.00023696,2]